[Event "*** Titled Tuesday 3|2 Blitz (Late)"]
[Site "Chess.com"]
[Date "2017.01.03"]
[Round "8"]
[White "Goala"]
[Black "ChristopherYoo"]
[Result "1-0"]
[WhiteElo "2188"]
[BlackElo "2065"]
[TimeControl "180+2"]
[EndTime "18:35:21 PST"]
[Termination "Goala won by resignation"]

1. d4 {[%clk 0:03:02]} 1... Nf6 {[%clk 0:03:00]} 2. c4 {[%clk 0:03:03.4]} 2...
g6 {[%clk 0:03:00.9]} 3. Nc3 {[%clk 0:03:03.7]} 3... d5 {[%clk 0:03:01.4]} 4.
cxd5 {[%clk 0:03:03.6]} 4... Nxd5 {[%clk 0:03:02.2]} 5. e4 {[%clk 0:03:05.3]}
5... Nxc3 {[%clk 0:03:03.2]} 6. bxc3 {[%clk 0:03:07.2]} 6... Bg7 {[%clk
0:03:04.4]} 7. Be3 {[%clk 0:03:08.7]} 7... c5 {[%clk 0:03:03.9]} 8. Qd2 {[%clk
0:03:10.1]} 8... Qa5 {[%clk 0:02:58.5]} 9. Rb1 {[%clk 0:03:11.6]} 9... a6 {[%clk
0:02:38.1]} 10. Rc1 {[%clk 0:03:11.3]} 10... Nc6 {[%clk 0:02:29.7]} 11. d5
{[%clk 0:03:09.4]} 11... Ne5 {[%clk 0:02:30.2]} 12. c4 {[%clk 0:03:05.9]} 12...
Qa3 {[%clk 0:01:50.8]} 13. h3 {[%clk 0:02:38.5]} 13... Nd7 {[%clk 0:01:12.9]}
14. f4 {[%clk 0:02:37.8]} 14... Nb6 {[%clk 0:01:05.5]} 15. Nf3 {[%clk
0:02:29.5]} 15... Na4 {[%clk 0:01:00.6]} 16. e5 {[%clk 0:02:27.6]} 16... Bf5
{[%clk 0:00:58.3]} 17. Be2 {[%clk 0:02:24.8]} 17... O-O {[%clk 0:00:51.6]} 18.
O-O {[%clk 0:02:25.3]} 18... Rfb8 {[%clk 0:00:50.4]} 19. g4 {[%clk 0:01:59.7]}
19... Be4 {[%clk 0:00:50.4]} 20. Ng5 {[%clk 0:02:00.8]} 20... b5 {[%clk
0:00:26.5]} 21. Nxe4 {[%clk 0:01:55.9]} 21... bxc4 {[%clk 0:00:25.7]} 22. Bxc4
{[%clk 0:01:39.9]} 22... Rb2 {[%clk 0:00:23.8]} 23. Qd3 {[%clk 0:01:29.7]} 23...
Qb4 {[%clk 0:00:20.3]} 24. Bb3 {[%clk 0:01:22.4]} 24... Nb6 {[%clk 0:00:16.1]}
25. Bxc5 {[%clk 0:01:20.8]} 25... Qa5 {[%clk 0:00:17.1]} 26. Bd4 {[%clk
0:01:12.9]} 26... Rxb3 {[%clk 0:00:14.6]} 27. Qxb3 {[%clk 0:01:06.4]} 27... Nxd5
{[%clk 0:00:12.8]} 28. Rc5 {[%clk 0:01:02.5]} 28... Qd8 {[%clk 0:00:12.9]} 29.
Qxd5 {[%clk 0:01:02]} 29... Qe8 {[%clk 0:00:11.5]} 30. Qc4 {[%clk 0:00:52.2]}
30... Rd8 {[%clk 0:00:12]} 31. Be3 {[%clk 0:00:52.6]} 31... e6 {[%clk
0:00:12.1]} 32. Rc7 {[%clk 0:00:52.8]} 32... Rd7 {[%clk 0:00:10.4]} 33. Rc8
{[%clk 0:00:52.5]} 33... Rd8 {[%clk 0:00:11.4]} 34. Rc1 {[%clk 0:00:53.1]} 1-0

[Event "*** Titled Tuesday 3|2 Blitz (Late)"]
[Site "Chess.com"]
[Date "2017.01.03"]
[Round "8"]
[White "Shivagami"]
[Black "Rating-Schmating"]
[Result "0-1"]
[WhiteElo "1999"]
[BlackElo "2249"]
[TimeControl "180+2"]
[EndTime "18:35:24 PST"]
[Termination "Rating-Schmating won by resignation"]

1. d4 {[%clk 0:03:02]} 1... Nf6 {[%clk 0:03:00.2]} 2. Bf4 {[%clk 0:03:00.5]}
2... d5 {[%clk 0:03:00.5]} 3. e3 {[%clk 0:02:59.1]} 3... Bf5 {[%clk 0:03:00.7]}
4. Nf3 {[%clk 0:02:54]} 4... e6 {[%clk 0:02:59.2]} 5. c4 {[%clk 0:02:54.2]} 5...
c6 {[%clk 0:03:00.2]} 6. Nc3 {[%clk 0:02:50.3]} 6... Bd6 {[%clk 0:03:00.9]} 7.
Ne5 {[%clk 0:02:45]} 7... Ne4 {[%clk 0:02:55.6]} 8. f3 {[%clk 0:02:10.1]} 8...
Nxc3 {[%clk 0:02:54.7]} 9. bxc3 {[%clk 0:02:05.7]} 9... f6 {[%clk 0:02:51]} 10.
Nd3 {[%clk 0:01:25]} 10... Bxd3 {[%clk 0:02:51]} 11. Bxd3 {[%clk 0:01:22.2]}
11... Bxf4 {[%clk 0:02:40.9]} 12. exf4 {[%clk 0:01:24.1]} 12... Qc7 {[%clk
0:02:40.7]} 13. Qd2 {[%clk 0:01:23.1]} 13... Nd7 {[%clk 0:02:41.5]} 14. Qe3
{[%clk 0:01:13.3]} 14... Qd6 {[%clk 0:02:38.9]} 15. O-O {[%clk 0:01:08.1]} 15...
O-O {[%clk 0:02:39.2]} 16. Rfe1 {[%clk 0:01:01.7]} 16... Rae8 {[%clk 0:02:39.4]}
17. c5 {[%clk 0:00:28.8]} 17... Qb8 {[%clk 0:02:28.8]} 18. Bc2 {[%clk
0:00:28.3]} 18... e5 {[%clk 0:02:27.3]} 19. Qd3 {[%clk 0:00:26.3]} 19... g6
{[%clk 0:02:28.3]} 20. fxe5 {[%clk 0:00:23.7]} 20... fxe5 {[%clk 0:02:29.6]} 21.
Kf2 {[%clk 0:00:18.2]} 21... Kg7 {[%clk 0:02:29.1]} 22. Re2 {[%clk 0:00:15.4]}
22... exd4 {[%clk 0:02:30.3]} 23. Qxd4+ {[%clk 0:00:15.4]} 23... Nf6 {[%clk
0:02:31.2]} 24. Rae1 {[%clk 0:00:14.2]} 24... Rxe2+ {[%clk 0:02:30.7]} 25. Rxe2
{[%clk 0:00:14.8]} 25... Rf7 {[%clk 0:02:32.3]} 26. g3 {[%clk 0:00:14.3]} 26...
b6 {[%clk 0:02:31.1]} 27. cxb6 {[%clk 0:00:14.2]} 27... Qxb6 {[%clk 0:02:32.4]}
28. Qxb6 {[%clk 0:00:14.3]} 28... axb6 {[%clk 0:02:34.3]} 29. Re6 {[%clk
0:00:14.9]} 29... Rc7 {[%clk 0:02:35.4]} 30. Ba4 {[%clk 0:00:14.8]} 30... c5
{[%clk 0:02:35.3]} 31. Rxb6 {[%clk 0:00:14.3]} 31... Ra7 {[%clk 0:02:36.6]} 32.
Bb3 {[%clk 0:00:12.4]} 32... c4 {[%clk 0:02:38]} 33. Bd1 {[%clk 0:00:11.7]}
33... Rxa2+ {[%clk 0:02:39.1]} 34. Ke1 {[%clk 0:00:12]} 34... Rxh2 {[%clk
0:02:39.4]} 35. Rb7+ {[%clk 0:00:13.2]} 35... Kh6 {[%clk 0:02:40.6]} 36. Rb6
{[%clk 0:00:13.5]} 36... Nd7 {[%clk 0:02:41.5]} 37. Rd6 {[%clk 0:00:14.2]} 37...
Ne5 {[%clk 0:02:40.6]} 38. Rxd5 {[%clk 0:00:15.4]} 38... Nd3+ {[%clk 0:02:41.8]}
39. Kf1 {[%clk 0:00:14.1]} 39... Rd2 {[%clk 0:02:42.8]} 40. Ba4 {[%clk 0:00:13]}
40... Rf2+ {[%clk 0:02:43.5]} 41. Kg1 {[%clk 0:00:13.4]} 41... Rxf3 {[%clk
0:02:44.8]} 42. Kg2 {[%clk 0:00:12.2]} 42... Rf2+ {[%clk 0:02:45.8]} 43. Kh3
{[%clk 0:00:12.8]} 43... Ra2 {[%clk 0:02:41.8]} 44. Bb5 {[%clk 0:00:12.8]} 44...
Nf2+ {[%clk 0:02:42]} 45. Kh4 {[%clk 0:00:11.6]} 45... Ra1 {[%clk 0:02:38.4]}
46. g4 {[%clk 0:00:11]} 46... Rh1+ {[%clk 0:02:38.6]} 47. Kg3 {[%clk 0:00:11.7]}
47... Ne4+ {[%clk 0:02:40.2]} 48. Kg2 {[%clk 0:00:12.3]} 48... Rc1 {[%clk
0:02:37.5]} 49. Bxc4 {[%clk 0:00:12.5]} 49... Rxc3 {[%clk 0:02:35.6]} 50. Rd7
{[%clk 0:00:13]} 50... Rxc4 {[%clk 0:02:34.2]} 51. Kf3 {[%clk 0:00:13]} 51...
Ng5+ {[%clk 0:02:34.7]} 52. Kg3 {[%clk 0:00:13.7]} 52... Rc3+ {[%clk 0:02:35.5]}
53. Kf4 {[%clk 0:00:13.5]} 53... Rf3+ {[%clk 0:02:35]} 54. Ke5 {[%clk
0:00:13.6]} 54... Rf1 {[%clk 0:02:29.7]} 55. Rd4 {[%clk 0:00:13.3]} 55... Nf3+
{[%clk 0:02:30.3]} 0-1

[Event "*** Titled Tuesday 3|2 Blitz (Late)"]
[Site "Chess.com"]
[Date "2017.01.03"]
[Round "8"]
[White "Caminator2000"]
[Black "DuleMudule"]
[Result "1-0"]
[WhiteElo "2246"]
[BlackElo "2511"]
[TimeControl "180+2"]
[EndTime "18:36:24 PST"]
[Termination "Caminator2000 won by checkmate"]

1. c4 {[%clk 0:03:02]} 1... e5 {[%clk 0:03:00.6]} 2. Nc3 {[%clk 0:03:01.2]} 2...
Nc6 {[%clk 0:03:02.2]} 3. Nf3 {[%clk 0:02:57.2]} 3... g6 {[%clk 0:03:03.7]} 4.
d4 {[%clk 0:02:55.3]} 4... exd4 {[%clk 0:03:05.6]} 5. Nxd4 {[%clk 0:02:56.5]}
5... Bg7 {[%clk 0:03:06.9]} 6. Nxc6 {[%clk 0:02:51.4]} 6... dxc6 {[%clk
0:03:08.8]} 7. Qxd8+ {[%clk 0:02:46.2]} 7... Kxd8 {[%clk 0:03:10.7]} 8. Bg5+
{[%clk 0:02:44.8]} 8... Ke8 {[%clk 0:03:11.4]} 9. Bf4 {[%clk 0:02:41.2]} 9...
Be6 {[%clk 0:03:09.1]} 10. e4 {[%clk 0:02:38.8]} 10... Rc8 {[%clk 0:03:07.7]}
11. f3 {[%clk 0:02:30.4]} 11... Ne7 {[%clk 0:03:05.9]} 12. h4 {[%clk 0:02:27.8]}
12... h6 {[%clk 0:03:05.8]} 13. Be2 {[%clk 0:02:24.5]} 13... f5 {[%clk
0:03:06.7]} 14. O-O-O {[%clk 0:02:13.7]} 14... Kf7 {[%clk 0:03:07.6]} 15. g4
{[%clk 0:02:10.7]} 15... fxg4 {[%clk 0:02:29.2]} 16. fxg4 {[%clk 0:02:08.5]}
16... Rhf8 {[%clk 0:02:29.3]} 17. Bg3 {[%clk 0:02:06.7]} 17... Kg8 {[%clk
0:02:30.3]} 18. g5 {[%clk 0:02:04.5]} 18... h5 {[%clk 0:02:30.9]} 19. c5 {[%clk
0:01:57.4]} 19... b5 {[%clk 0:02:02]} 20. Rhf1 {[%clk 0:01:50.4]} 20... Rxf1
{[%clk 0:01:56.1]} 21. Bxf1 {[%clk 0:01:47.1]} 21... Kf7 {[%clk 0:01:46.8]} 22.
Kc2 {[%clk 0:01:44.3]} 22... a5 {[%clk 0:01:43.8]} 23. Ne2 {[%clk 0:01:40.5]}
23... Bxa2 {[%clk 0:01:40]} 24. Bh3 {[%clk 0:01:37.7]} 24... Re8 {[%clk
0:01:07.1]} 25. Bd7 {[%clk 0:01:33.6]} 25... Ra8 {[%clk 0:01:02]} 26. Nc1 {[%clk
0:01:29.3]} 26... Bc4 {[%clk 0:00:41.3]} 27. b3 {[%clk 0:01:28]} 27... Bxb3+
{[%clk 0:00:36.7]} 28. Kxb3 {[%clk 0:01:25.8]} 28... a4+ {[%clk 0:00:32.5]} 29.
Ka3 {[%clk 0:01:26.7]} 29... Bc3 {[%clk 0:00:10.9]} 30. Na2 {[%clk 0:01:16.4]}
30... Ba5 {[%clk 0:00:11.1]} 31. Rf1+ {[%clk 0:01:03.6]} 31... Kg8 {[%clk
0:00:10.2]} 32. Be6+ {[%clk 0:01:04]} 32... Kh8 {[%clk 0:00:10]} 33. Be5+ {[%clk
0:01:04.6]} 33... Kh7 {[%clk 0:00:11.4]} 34. Rf7+ {[%clk 0:01:06.1]} 34... Kg8
{[%clk 0:00:09]} 35. Rxe7+ {[%clk 0:01:00.7]} 35... Kf8 {[%clk 0:00:09.5]} 36.
Rf7+ {[%clk 0:00:44]} 36... Ke8 {[%clk 0:00:10]} 37. Rh7 {[%clk 0:00:45.5]}
37... Rd8 {[%clk 0:00:10.1]} 38. Rh8+ {[%clk 0:00:42.7]} 38... Ke7 {[%clk
0:00:11]} 39. Bf6+ {[%clk 0:00:44.2]} 39... Kxe6 {[%clk 0:00:12.5]} 40. Rxd8
{[%clk 0:00:44.1]} 40... b4+ {[%clk 0:00:13.7]} 41. Nxb4 {[%clk 0:00:42.3]}
41... Bxb4+ {[%clk 0:00:15.6]} 42. Kxb4 {[%clk 0:00:43.6]} 42... a3 {[%clk
0:00:17.5]} 43. Re8+ {[%clk 0:00:43.9]} 43... Kd7 {[%clk 0:00:17.6]} 44. Re7+
{[%clk 0:00:45.1]} 44... Kc8 {[%clk 0:00:18.9]} 45. Kxa3 {[%clk 0:00:46.3]}
45... Kb7 {[%clk 0:00:20.8]} 46. Rg7 {[%clk 0:00:46.7]} 46... Ka6 {[%clk
0:00:22.7]} 47. Kb4 {[%clk 0:00:47.2]} 47... Kb7 {[%clk 0:00:23.4]} 48. Rxg6
{[%clk 0:00:48.7]} 48... Ka6 {[%clk 0:00:25.3]} 49. Rh6 {[%clk 0:00:50]} 49...
Kb7 {[%clk 0:00:26.4]} 50. Rxh5 {[%clk 0:00:51.5]} 50... Ka6 {[%clk 0:00:28.3]}
51. g6 {[%clk 0:00:52.9]} 51... Kb7 {[%clk 0:00:29.5]} 52. g7 {[%clk 0:00:54.4]}
52... Ka6 {[%clk 0:00:31.1]} 53. g8=Q {[%clk 0:00:55.3]} 53... Kb7 {[%clk
0:00:33]} 54. Rh8 {[%clk 0:00:55.9]} 54... Ka7 {[%clk 0:00:34.9]} 55. Qa8#
{[%clk 0:00:56.9]} 1-0

[Event "*** Titled Tuesday 3|2 Blitz (Late)"]
[Site "Chess.com"]
[Date "2017.01.03"]
[Round "8"]
[White "eltenedor"]
[Black "andresgv36"]
[Result "0-1"]
[WhiteElo "2021"]
[BlackElo "2291"]
[TimeControl "180+2"]
[EndTime "18:36:26 PST"]
[Termination "andresgv36 won on time"]

1. c4 {[%clk 0:03:02]} 1... c5 {[%clk 0:02:58.7]} 2. b3 {[%clk 0:02:53.8]} 2...
Nf6 {[%clk 0:02:56.3]} 3. Bb2 {[%clk 0:02:52.4]} 3... d5 {[%clk 0:02:57.7]} 4.
cxd5 {[%clk 0:02:52.1]} 4... Nxd5 {[%clk 0:02:58.9]} 5. g3 {[%clk 0:02:49.8]}
5... Nc6 {[%clk 0:02:58.1]} 6. Bg2 {[%clk 0:02:50.5]} 6... e5 {[%clk 0:02:59.3]}
7. d3 {[%clk 0:02:41.2]} 7... Be6 {[%clk 0:02:59.9]} 8. Nf3 {[%clk 0:02:37.8]}
8... f6 {[%clk 0:03:00.9]} 9. O-O {[%clk 0:02:37.2]} 9... Be7 {[%clk 0:03:02]}
10. Nbd2 {[%clk 0:02:28.5]} 10... O-O {[%clk 0:03:03]} 11. Rc1 {[%clk
0:02:18.7]} 11... Nd4 {[%clk 0:02:52.2]} 12. Nc4 {[%clk 0:02:02.5]} 12... b5
{[%clk 0:02:48.1]} 13. Ne3 {[%clk 0:01:38.8]} 13... a5 {[%clk 0:02:43.8]} 14.
Nd2 {[%clk 0:01:25.9]} 14... Rc8 {[%clk 0:02:25.4]} 15. Nc2 {[%clk 0:01:13.1]}
15... Qd7 {[%clk 0:02:14.9]} 16. Re1 {[%clk 0:01:08.6]} 16... Rfd8 {[%clk
0:02:05.4]} 17. Nf1 {[%clk 0:01:03]} 17... Nb4 {[%clk 0:01:37.5]} 18. Nxb4
{[%clk 0:00:39.5]} 18... axb4 {[%clk 0:01:38.1]} 19. Qd2 {[%clk 0:00:31.6]}
19... Ra8 {[%clk 0:01:38.2]} 20. Ra1 {[%clk 0:00:30.4]} 20... Ra6 {[%clk
0:01:32.7]} 21. Ne3 {[%clk 0:00:23.3]} 21... Qa7 {[%clk 0:01:28.5]} 22. Bxd4
{[%clk 0:00:17.7]} 22... exd4 {[%clk 0:01:24.5]} 23. Nc2 {[%clk 0:00:18.2]}
23... Rxa2 {[%clk 0:01:20.5]} 24. Rxa2 {[%clk 0:00:11.6]} 24... Qxa2 {[%clk
0:01:21.4]} 25. Ra1 {[%clk 0:00:12.3]} 25... Qxb3 {[%clk 0:01:19.5]} 26. Bc6
{[%clk 0:00:12.7]} 26... Rb8 {[%clk 0:01:14.9]} 27. Ra7 {[%clk 0:00:10.9]} 27...
Bf8 {[%clk 0:01:08.8]} 28. Kg2 {[%clk 0:00:11.2]} 28... Bd5+ {[%clk 0:01:08.6]}
29. Bxd5+ {[%clk 0:00:10.9]} 29... Qxd5+ {[%clk 0:01:10.2]} 30. f3 {[%clk
0:00:12]} 30... Ra8 {[%clk 0:01:09.5]} 31. Rxa8 {[%clk 0:00:07.9]} 31... Qxa8
{[%clk 0:01:10.4]} 32. Qf4 {[%clk 0:00:07.4]} 32... Qe8 {[%clk 0:01:08.8]} 33.
Kf1 {[%clk 0:00:06.3]} 33... Qe5 {[%clk 0:01:07.5]} 34. Qg4 {[%clk 0:00:06.5]}
34... f5 {[%clk 0:01:07.3]} 35. Qg5 {[%clk 0:00:06.4]} 35... Be7 {[%clk
0:01:04.6]} 36. Qc1 {[%clk 0:00:05.8]} 36... Qe6 {[%clk 0:01:00.3]} 37. Qb2
{[%clk 0:00:05.8]} 37... h6 {[%clk 0:00:56.9]} 38. Na1 {[%clk 0:00:04.7]} 38...
Kh7 {[%clk 0:00:57.6]} 39. Nb3 {[%clk 0:00:05]} 39... Qd5 {[%clk 0:00:56.6]} 40.
Nd2 {[%clk 0:00:02.7]} 40... Bg5 {[%clk 0:00:54.8]} 41. Nb3 {[%clk 0:00:02.3]}
41... Be3 {[%clk 0:00:54.5]} 42. Kg2 {[%clk 0:00:03.2]} 42... c4 {[%clk
0:00:55.1]} 43. dxc4 {[%clk 0:00:02.7]} 43... bxc4 {[%clk 0:00:56.4]} 44. Na1
{[%clk 0:00:02.8]} 44... b3 {[%clk 0:00:55.9]} 0-1

[Event "*** Titled Tuesday 3|2 Blitz (Late)"]
[Site "Chess.com"]
[Date "2017.01.03"]
[Round "8"]
[White "Buffy7"]
[Black "Kacparov"]
[Result "0-1"]
[WhiteElo "2503"]
[BlackElo "2599"]
[TimeControl "180+2"]
[EndTime "18:36:52 PST"]
[Termination "Kacparov won by resignation"]

1. Nf3 {[%clk 0:03:02]} 1... d6 {[%clk 0:03:00.4]} 2. g3 {[%clk 0:03:03.4]} 2...
g6 {[%clk 0:03:00.2]} 3. Bg2 {[%clk 0:03:04.8]} 3... Bg7 {[%clk 0:03:01.8]} 4.
O-O {[%clk 0:03:06.4]} 4... e5 {[%clk 0:03:02.2]} 5. d3 {[%clk 0:03:07.9]} 5...
f5 {[%clk 0:03:01.7]} 6. c4 {[%clk 0:03:09]} 6... Nf6 {[%clk 0:03:03.3]} 7. Nc3
{[%clk 0:03:10.6]} 7... O-O {[%clk 0:03:04.5]} 8. Rb1 {[%clk 0:03:12]} 8... a5
{[%clk 0:03:05.2]} 9. a3 {[%clk 0:03:13.1]} 9... Nc6 {[%clk 0:03:05.7]} 10. b4
{[%clk 0:03:14.5]} 10... h6 {[%clk 0:03:07.1]} 11. c5 {[%clk 0:03:00.5]} 11...
axb4 {[%clk 0:02:59.2]} 12. axb4 {[%clk 0:03:01.4]} 12... dxc5 {[%clk
0:02:39.8]} 13. b5 {[%clk 0:02:59.5]} 13... Nd4 {[%clk 0:02:40.5]} 14. Nxe5
{[%clk 0:03:00.4]} 14... Kh7 {[%clk 0:02:41.2]} 15. e3 {[%clk 0:02:48.3]} 15...
Ne6 {[%clk 0:02:41.4]} 16. Nc4 {[%clk 0:02:47]} 16... Ng4 {[%clk 0:02:28]} 17.
Qc2 {[%clk 0:02:42.4]} 17... Rb8 {[%clk 0:02:24.2]} 18. b6 {[%clk 0:02:30.6]}
18... c6 {[%clk 0:02:21]} 19. Na4 {[%clk 0:02:26.2]} 19... Qe7 {[%clk
0:02:11.7]} 20. Ba3 {[%clk 0:02:27.1]} 20... Ra8 {[%clk 0:02:09.1]} 21. d4
{[%clk 0:02:28]} 21... Rd8 {[%clk 0:01:50.3]} 22. Nxc5 {[%clk 0:02:26.6]} 22...
Nxc5 {[%clk 0:01:51.1]} 23. Bxc5 {[%clk 0:02:27.3]} 23... Qe6 {[%clk 0:01:48.7]}
24. Ra1 {[%clk 0:02:17.4]} 24... Rxa1 {[%clk 0:01:48.5]} 25. Rxa1 {[%clk
0:02:19.3]} 25... Bd7 {[%clk 0:01:47.4]} 26. Ra7 {[%clk 0:02:18.5]} 26... Bc8
{[%clk 0:01:41.1]} 27. Qa2 {[%clk 0:02:10.5]} 27... Nf6 {[%clk 0:01:29.6]} 28.
Ne5 {[%clk 0:01:55]} 28... Nd5 {[%clk 0:01:24.9]} 29. Bxd5 {[%clk 0:01:49.7]}
29... Rxd5 {[%clk 0:01:25]} 30. Nd3 {[%clk 0:01:49.3]} 30... Qe8 {[%clk
0:01:17.4]} 31. Ra8 {[%clk 0:01:46]} 31... Rd8 {[%clk 0:01:14.8]} 32. Nb4 {[%clk
0:01:38.4]} 32... g5 {[%clk 0:01:06.8]} 33. Qc2 {[%clk 0:01:33.7]} 33... Be6
{[%clk 0:00:56.3]} 34. Rxd8 {[%clk 0:01:31.2]} 34... Qxd8 {[%clk 0:00:58.2]} 35.
e4 {[%clk 0:01:06]} 35... Qd7 {[%clk 0:00:54.4]} 36. e5 {[%clk 0:00:58.7]} 36...
h5 {[%clk 0:00:52.6]} 37. Qe2 {[%clk 0:00:55]} 37... Kg6 {[%clk 0:00:51.2]} 38.
Qe3 {[%clk 0:00:51]} 38... Bh6 {[%clk 0:00:52.1]} 39. Qa3 {[%clk 0:00:45.7]}
39... Qc8 {[%clk 0:00:48.2]} 40. Kg2 {[%clk 0:00:41.6]} 40... h4 {[%clk
0:00:45.4]} 41. Qa1 {[%clk 0:00:35.6]} 41... g4 {[%clk 0:00:43.9]} 42. Kf1
{[%clk 0:00:22.7]} 42... h3 {[%clk 0:00:41.9]} 43. Ke1 {[%clk 0:00:23.7]} 43...
Bf7 {[%clk 0:00:36]} 44. Qa7 {[%clk 0:00:18]} 44... f4 {[%clk 0:00:30.8]} 45.
Nd3 {[%clk 0:00:18.4]} 45... fxg3 {[%clk 0:00:30.9]} 46. hxg3 {[%clk 0:00:19.2]}
46... Qf5 {[%clk 0:00:28.9]} 47. Ke2 {[%clk 0:00:09.7]} 47... Qf3+ {[%clk
0:00:26.9]} 48. Ke1 {[%clk 0:00:10.1]} 48... Qxd3 {[%clk 0:00:27.4]} 0-1

[Event "*** Titled Tuesday 3|2 Blitz (Late)"]
[Site "Chess.com"]
[Date "2017.01.03"]
[Round "8"]
[White "yian123"]
[Black "aspired"]
[Result "0-1"]
[WhiteElo "2388"]
[BlackElo "2476"]
[TimeControl "180+2"]
[EndTime "18:37:46 PST"]
[Termination "aspired won on time"]

1. e4 {[%clk 0:03:01.1]} 1... e5 {[%clk 0:03:00.2]} 2. Nf3 {[%clk 0:02:59.8]}
2... Nc6 {[%clk 0:03:01.7]} 3. Bb5 {[%clk 0:02:54.7]} 3... Nf6 {[%clk
0:03:00.5]} 4. O-O {[%clk 0:02:54.9]} 4... Nxe4 {[%clk 0:03:00.7]} 5. Re1 {[%clk
0:02:55.9]} 5... Nd6 {[%clk 0:03:02.2]} 6. Nxe5 {[%clk 0:02:56.3]} 6... Be7
{[%clk 0:03:03]} 7. Bf1 {[%clk 0:02:55.6]} 7... Nf5 {[%clk 0:03:02.7]} 8. Nf3
{[%clk 0:02:50.3]} 8... O-O {[%clk 0:03:02.1]} 9. d4 {[%clk 0:02:51]} 9... d5
{[%clk 0:03:03.7]} 10. c3 {[%clk 0:02:48.6]} 10... h6 {[%clk 0:03:02.5]} 11. Bd3
{[%clk 0:02:45.2]} 11... Bd6 {[%clk 0:03:03.8]} 12. Nbd2 {[%clk 0:02:45.5]}
12... Nh4 {[%clk 0:03:02.1]} 13. Nxh4 {[%clk 0:02:43.4]} 13... Qxh4 {[%clk
0:03:04]} 14. Nf1 {[%clk 0:02:43.6]} 14... Rb8 {[%clk 0:02:40.5]} 15. Bc2 {[%clk
0:02:34.8]} 15... Ne7 {[%clk 0:02:33.8]} 16. Ng3 {[%clk 0:02:29]} 16... c6
{[%clk 0:02:14]} 17. Be3 {[%clk 0:01:39.8]} 17... f5 {[%clk 0:01:52.5]} 18. f4
{[%clk 0:01:11.6]} 18... Ng6 {[%clk 0:01:50.1]} 19. Qh5 {[%clk 0:01:08.1]} 19...
Qxh5 {[%clk 0:01:47.4]} 20. Nxh5 {[%clk 0:01:08.7]} 20... Bd7 {[%clk 0:01:43.8]}
21. Bd2 {[%clk 0:01:05.1]} 21... Rbe8 {[%clk 0:01:41.9]} 22. Kf2 {[%clk
0:01:04.3]} 22... Kf7 {[%clk 0:01:41.8]} 23. Kf3 {[%clk 0:00:56.7]} 23... Nh4+
{[%clk 0:01:29.8]} 24. Kf2 {[%clk 0:00:56.1]} 24... Ng6 {[%clk 0:01:31.7]} 25.
Kf3 {[%clk 0:00:56.8]} 25... a6 {[%clk 0:01:29.8]} 26. Ng3 {[%clk 0:00:51.3]}
26... Rxe1 {[%clk 0:01:28.3]} 27. Rxe1 {[%clk 0:00:50.9]} 27... Ne7 {[%clk
0:01:30.2]} 28. h4 {[%clk 0:00:39.8]} 28... a5 {[%clk 0:01:25.9]} 29. h5 {[%clk
0:00:40.2]} 29... b5 {[%clk 0:01:26.2]} 30. b3 {[%clk 0:00:36.4]} 30... Rb8
{[%clk 0:01:26.9]} 31. Bd3 {[%clk 0:00:34.8]} 31... Kf6 {[%clk 0:01:25.6]} 32.
Rc1 {[%clk 0:00:30.9]} 32... Be6 {[%clk 0:01:23.7]} 33. Be1 {[%clk 0:00:29.4]}
33... a4 {[%clk 0:01:15.3]} 34. b4 {[%clk 0:00:26.5]} 34... Bf7 {[%clk 0:01:13]}
35. Bf2 {[%clk 0:00:23.4]} 35... Rh8 {[%clk 0:01:09.7]} 36. Rh1 {[%clk
0:00:23.7]} 36... Be6 {[%clk 0:01:10.1]} 37. Ne2 {[%clk 0:00:23.7]} 37... Kf7
{[%clk 0:01:09]} 38. Bh4 {[%clk 0:00:23]} 38... Rf8 {[%clk 0:01:08.8]} 39. Ng3
{[%clk 0:00:21.9]} 39... Ke8 {[%clk 0:01:09.5]} 40. Re1 {[%clk 0:00:19.6]} 40...
Kd7 {[%clk 0:01:10.8]} 41. Re2 {[%clk 0:00:17.1]} 41... Nc8 {[%clk 0:01:08.8]}
42. Nf1 {[%clk 0:00:15.3]} 42... Bc7 {[%clk 0:01:05.7]} 43. Nd2 {[%clk 0:00:14]}
43... Nd6 {[%clk 0:01:06.2]} 44. Be1 {[%clk 0:00:08.7]} 44... Ne4 {[%clk
0:01:05.9]} 45. Nf1 {[%clk 0:00:09.4]} 45... Bd8 {[%clk 0:01:00.8]} 46. Rc2
{[%clk 0:00:05.8]} 46... Bf7 {[%clk 0:00:58.5]} 47. Ng3 {[%clk 0:00:04.9]} 47...
Nxg3 {[%clk 0:00:59.5]} 48. Kxg3 {[%clk 0:00:06.1]} 48... Bxh5 {[%clk
0:01:00.7]} 49. Be2 {[%clk 0:00:06.8]} 49... Re8 {[%clk 0:00:56.6]} 50. Bxh5
{[%clk 0:00:07]} 50... Rxe1 {[%clk 0:00:58]} 51. Kf2 {[%clk 0:00:07.1]} 51...
Ra1 {[%clk 0:00:58.2]} 52. Bg6 {[%clk 0:00:06.7]} 52... a3 {[%clk 0:00:43.4]}
53. Bxf5+ {[%clk 0:00:06.5]} 53... Kd6 {[%clk 0:00:44.6]} 54. g3 {[%clk
0:00:06.7]} 54... h5 {[%clk 0:00:39.9]} 0-1